[Event "Torneo Nuevo Centro. Jornada 11"]
[Site "Chess.com"]
[Date "2020.08.28"]
[Round "2"]
[White "Rodriguez Rodriguez, Joan David "]
[Black "Bosch Jordà, Ricard"]
[Result "1-0"]
[WhiteElo "1790"]
[BlackElo "1927"]
[TimeControl "180+2"]
[EndTime "10:49:19 PDT"]
[Termination "Victoria de Not_Jr_chess por tiempo"]

1. d4 {[%clk 0:03:01.9]} 1... Nf6 {[%clk 0:02:52.2]} 2. c4 {[%clk 0:03:03.1]}
2... c5 {[%clk 0:02:53]} 3. d5 {[%clk 0:03:04]} 3... b5 {[%clk 0:02:54]} 4. cxb5
{[%clk 0:03:04.7]} 4... a6 {[%clk 0:02:54.8]} 5. e3 {[%clk 0:03:03.3]} 5... g6
{[%clk 0:02:53.3]} 6. Nc3 {[%clk 0:03:03.7]} 6... Bg7 {[%clk 0:02:53.6]} 7. Nf3
{[%clk 0:03:05]} 7... O-O {[%clk 0:02:52.7]} 8. e4 {[%clk 0:03:06]} 8... d6
{[%clk 0:02:53.6]} 9. a4 {[%clk 0:03:06.5]} 9... axb5 {[%clk 0:02:54.2]} 10.
Bxb5 {[%clk 0:03:07.4]} 10... Bd7 {[%clk 0:02:54.2]} 11. Bxd7 {[%clk 0:02:55.7]}
11... Nbxd7 {[%clk 0:02:56.1]} 12. O-O {[%clk 0:02:54.8]} 12... Ng4 {[%clk
0:02:51.8]} 13. h3 {[%clk 0:02:48.6]} 13... Nge5 {[%clk 0:02:45.9]} 14. Nxe5
{[%clk 0:02:48.8]} 14... Nxe5 {[%clk 0:02:47.8]} 15. Qe2 {[%clk 0:02:46.5]}
15... f5 {[%clk 0:02:21.3]} 16. f4 {[%clk 0:02:43.7]} 16... Nd7 {[%clk
0:02:16.6]} 17. exf5 {[%clk 0:02:02.3]} 17... Rxf5 {[%clk 0:02:15]} 18. Qe6+
{[%clk 0:01:47.2]} 18... Kh8 {[%clk 0:02:13.3]} 19. Re1 {[%clk 0:01:40.8]} 19...
Bf8 {[%clk 0:01:20.4]} 20. Nb5 {[%clk 0:01:27.7]} 20... c4 {[%clk 0:01:04.2]}
21. Bd2 {[%clk 0:01:24]} 21... Nc5 {[%clk 0:01:03]} 22. Bc3+ {[%clk 0:01:22]}
22... Bg7 {[%clk 0:00:51.5]} 23. Qxe7 {[%clk 0:00:43.3]} 23... Qxe7 {[%clk
0:00:34.7]} 24. Rxe7 {[%clk 0:00:45.2]} 24... Bxc3 {[%clk 0:00:34.5]} 25. Nxc3
{[%clk 0:00:47.1]} 25... Rxf4 {[%clk 0:00:32.3]} 26. a5 {[%clk 0:00:39.7]} 26...
Nb3 {[%clk 0:00:25.8]} 27. Ra3 {[%clk 0:00:24.3]} 27... Rxa5 {[%clk 0:00:24.9]}
28. Rxa5 {[%clk 0:00:22.4]} 28... Nxa5 {[%clk 0:00:26.8]} 29. Re6 {[%clk
0:00:21.5]} 29... Nb7 {[%clk 0:00:24.8]} 30. Nb5 {[%clk 0:00:22.1]} 30... Rf5
{[%clk 0:00:09.8]} 31. Nxd6 {[%clk 0:00:19.3]} 31... Nxd6 {[%clk 0:00:09.8]} 32.
Rxd6 {[%clk 0:00:21.2]} 32... Kg7 {[%clk 0:00:10.9]} 33. Rd7+ {[%clk 0:00:15.3]}
33... Kf6 {[%clk 0:00:06.4]} 34. Rc7 {[%clk 0:00:15.4]} 34... Rxd5 {[%clk
0:00:06.8]} 35. Rxc4 {[%clk 0:00:16.4]} 35... Rd1+ {[%clk 0:00:07.4]} 36. Kh2
{[%clk 0:00:17]} 36... Rb1 {[%clk 0:00:07.7]} 37. Rb4 {[%clk 0:00:16.1]} 37...
h5 {[%clk 0:00:06.7]} 38. Rb6+ {[%clk 0:00:15]} 38... Kf5 {[%clk 0:00:07]} 39.
b4 {[%clk 0:00:15.8]} 39... h4 {[%clk 0:00:05.7]} 40. b5 {[%clk 0:00:15.4]}
40... g5 {[%clk 0:00:06.7]} 41. Rb8 {[%clk 0:00:15.3]} 41... Kg6 {[%clk
0:00:05.8]} 42. b6 {[%clk 0:00:16.4]} 42... Kf7 {[%clk 0:00:06]} 43. b7 {[%clk
0:00:17.1]} 43... Kg7 {[%clk 0:00:06.8]} 44. g4 {[%clk 0:00:13.1]} 44... hxg3+
{[%clk 0:00:06.5]} 45. Kxg3 {[%clk 0:00:14.5]} 45... Kf7 {[%clk 0:00:07.3]} 46.
Rh8 {[%clk 0:00:14]} 46... Kg7 {[%clk 0:00:07.2]} 47. b8=Q {[%clk 0:00:14.4]}
47... Rb7 {[%clk 0:00:05.2]} 48. Qxb7+ {[%clk 0:00:13.8]} 1

[Event "Torneo Nuevo Centro. Jornada 11"]
[Site "Chess.com"]
[Date "2020.08.28"]
[Round "2"]
[White "Ursariu, Nikolas Victor"]
[Black "Bascuñana Sánchez, Pablo"]
[Result "1/2-1/2"]
[WhiteElo "1179"]
[BlackElo "1673"]
[TimeControl "180+2"]
[EndTime "10:49:24 PDT"]
[Termination "Partida en tablas por material insuficiente"]

1. e4 {[%clk 0:03:01.9]} 1... c5 {[%clk 0:03:01]} 2. Nf3 {[%clk 0:02:59.7]} 2...
g6 {[%clk 0:03:02.3]} 3. Nc3 {[%clk 0:03:00]} 3... Bg7 {[%clk 0:02:58]} 4. Bc4
{[%clk 0:03:00.7]} 4... Nc6 {[%clk 0:02:57.7]} 5. O-O {[%clk 0:02:59.5]} 5... e6
{[%clk 0:02:53.8]} 6. d3 {[%clk 0:02:53.9]} 6... Nge7 {[%clk 0:02:52.2]} 7. Be3
{[%clk 0:02:51.6]} 7... b6 {[%clk 0:02:49.5]} 8. Re1 {[%clk 0:02:44]} 8... O-O
{[%clk 0:02:48.7]} 9. Bg5 {[%clk 0:02:36.7]} 9... Bb7 {[%clk 0:02:44.9]} 10. Be3
{[%clk 0:02:16.6]} 10... d6 {[%clk 0:02:20.8]} 11. d4 {[%clk 0:02:15.4]} 11...
d5 {[%clk 0:02:15.4]} 12. exd5 {[%clk 0:02:14.6]} 12... exd5 {[%clk 0:02:15.3]}
13. Bb3 {[%clk 0:02:13.8]} 13... Na5 {[%clk 0:01:24.4]} 14. dxc5 {[%clk
0:02:06.3]} 14... Nxb3 {[%clk 0:01:08.2]} 15. axb3 {[%clk 0:01:59.8]} 15... Nf5
{[%clk 0:01:01.4]} 16. cxb6 {[%clk 0:01:55.6]} 16... d4 {[%clk 0:00:40.2]} 17.
Bg5 {[%clk 0:01:48.9]} 17... f6 {[%clk 0:00:38.3]} 18. Bxf6 {[%clk 0:01:33.8]}
18... Bxf6 {[%clk 0:00:34.9]} 19. Ne2 {[%clk 0:01:33.2]} 19... Bxf3 {[%clk
0:00:33.2]} 20. bxa7 {[%clk 0:01:28.8]} 20... Bxe2 {[%clk 0:00:32.8]} 21. Rxe2
{[%clk 0:01:26.6]} 21... Qb6 {[%clk 0:00:27.5]} 22. c3 {[%clk 0:01:20.5]} 22...
Rxa7 {[%clk 0:00:24.1]} 23. cxd4 {[%clk 0:01:19]} 23... Rxa1 {[%clk 0:00:20]}
24. Qxa1 {[%clk 0:01:16.8]} 24... Nxd4 {[%clk 0:00:21.3]} 25. Rd2 {[%clk
0:01:13.7]} 25... Nxb3 {[%clk 0:00:21.4]} 26. Qa2 {[%clk 0:01:10.2]} 26... Re8
{[%clk 0:00:20.3]} 27. h3 {[%clk 0:01:07.9]} 27... Re1+ {[%clk 0:00:19.5]} 28.
Kh2 {[%clk 0:01:07.2]} 28... Qe6 {[%clk 0:00:17.8]} 29. Rd3 {[%clk 0:01:03.3]}
29... Nc5 {[%clk 0:00:14.8]} 30. Qxe6+ {[%clk 0:01:02.2]} 30... Rxe6 {[%clk
0:00:15.1]} 31. Rd2 {[%clk 0:01:00.9]} 31... Ne4 {[%clk 0:00:14.9]} 32. Re2
{[%clk 0:01:00.3]} 32... Nc5 {[%clk 0:00:12.7]} 33. Rc2 {[%clk 0:00:58.5]} 33...
Rc6 {[%clk 0:00:12.1]} 34. Re2 {[%clk 0:00:55.5]} 34... Kf7 {[%clk 0:00:12.1]}
35. Rc2 {[%clk 0:00:51.6]} 35... Be7 {[%clk 0:00:10.1]} 36. b4 {[%clk
0:00:51.1]} 36... Bd6+ {[%clk 0:00:10.8]} 37. Kg1 {[%clk 0:00:46.4]} 37... Ke6
{[%clk 0:00:10.8]} 38. bxc5 {[%clk 0:00:46.2]} 38... Rxc5 {[%clk 0:00:10.2]} 39.
Rxc5 {[%clk 0:00:46.2]} 39... Bxc5 {[%clk 0:00:10.9]} 40. Kh2 {[%clk 0:00:46.9]}
40... Ke5 {[%clk 0:00:10.8]} 41. Kg3 {[%clk 0:00:46.7]} 41... h6 {[%clk
0:00:09.4]} 42. f4+ {[%clk 0:00:45.9]} 42... Kf5 {[%clk 0:00:09.9]} 43. Kf3
{[%clk 0:00:44.1]} 43... Bd6 {[%clk 0:00:08.5]} 44. g4+ {[%clk 0:00:42.6]} 44...
Kf6 {[%clk 0:00:09.4]} 45. h4 {[%clk 0:00:41.5]} 45... h5 {[%clk 0:00:08.1]} 46.
Kg3 {[%clk 0:00:38.9]} 46... hxg4 {[%clk 0:00:05.4]} 47. Kxg4 {[%clk 0:00:39.1]}
47... Bb4 {[%clk 0:00:04.5]} 48. Kf3 {[%clk 0:00:35.9]} 48... Be1 {[%clk
0:00:05.4]} 49. Kg4 {[%clk 0:00:36]} 49... Bf2 {[%clk 0:00:05.6]} 50. h5 {[%clk
0:00:33.8]} 50... gxh5+ {[%clk 0:00:04.7]} 51. Kxh5 {[%clk 0:00:33.7]} 51... Be3
{[%clk 0:00:06]} 52. Kg4 {[%clk 0:00:34.4]} 52... Bd2 {[%clk 0:00:06.4]} 53. f5
{[%clk 0:00:34.2]} 53... Bg5 {[%clk 0:00:07.2]} 54. Kf3 {[%clk 0:00:32.4]} 54...
Bd2 {[%clk 0:00:09.1]} 55. Ke4 {[%clk 0:00:32.7]} 55... Bg5 {[%clk 0:00:10.8]}
56. Kf3 {[%clk 0:00:33.5]} 56... Kxf5 {[%clk 0:00:11.4]} 1/2-1

[Event "Torneo Nuevo Centro. Jornada 11"]
[Site "Chess.com"]
[Date "2020.08.28"]
[Round "2"]
[White "Luque Saiz, Andrés"]
[Black "Gutierrez Marco, Dario"]
[Result "1/2-1/2"]
[WhiteElo "2039"]
[BlackElo "1826"]
[TimeControl "180+2"]
[EndTime "10:49:38 PDT"]
[Termination "Partida en tablas por material insuficiente"]

1. e4 {[%clk 0:03:01.9]} 1... c5 {[%clk 0:02:57.1]} 2. Nf3 {[%clk 0:02:59.6]}
2... e6 {[%clk 0:02:58.1]} 3. Nc3 {[%clk 0:02:59.2]} 3... Nc6 {[%clk 0:02:58.7]}
4. d4 {[%clk 0:02:59.9]} 4... cxd4 {[%clk 0:03:00.6]} 5. Nxd4 {[%clk 0:03:01.5]}
5... Qc7 {[%clk 0:03:01.9]} 6. g3 {[%clk 0:03:01.9]} 6... a6 {[%clk 0:03:02.1]}
7. Bg2 {[%clk 0:03:02.5]} 7... Nf6 {[%clk 0:03:03.6]} 8. O-O {[%clk 0:03:02.7]}
8... Nxd4 {[%clk 0:03:05.1]} 9. Qxd4 {[%clk 0:03:03.3]} 9... Bc5 {[%clk
0:03:07]} 10. Bf4 {[%clk 0:03:04.6]} 10... d6 {[%clk 0:03:08.4]} 11. Qd2 {[%clk
0:03:03.7]} 11... h6 {[%clk 0:03:08.8]} 12. Rad1 {[%clk 0:03:04.3]} 12... e5
{[%clk 0:03:06.7]} 13. Be3 {[%clk 0:03:04.7]} 13... Be6 {[%clk 0:03:08.1]} 14.
a3 {[%clk 0:02:53.2]} 14... O-O {[%clk 0:03:02.7]} 15. h3 {[%clk 0:02:46.6]}
15... b5 {[%clk 0:02:42.9]} 16. Kh2 {[%clk 0:02:37.6]} 16... Rac8 {[%clk
0:02:34.8]} 17. Bxc5 {[%clk 0:02:29.5]} 17... dxc5 {[%clk 0:02:33]} 18. f4
{[%clk 0:02:17.1]} 18... Rfd8 {[%clk 0:02:16.1]} 19. Qe3 {[%clk 0:02:15.5]}
19... Bc4 {[%clk 0:02:05]} 20. Rf2 {[%clk 0:01:47.8]} 20... Rxd1 {[%clk
0:01:57.6]} 21. Nxd1 {[%clk 0:01:49.7]} 21... Rd8 {[%clk 0:01:56.4]} 22. Rd2
{[%clk 0:01:42.5]} 22... Rxd2 {[%clk 0:01:44]} 23. Qxd2 {[%clk 0:01:44.4]} 23...
Qd7 {[%clk 0:01:45.2]} 24. Qxd7 {[%clk 0:01:42.9]} 24... Nxd7 {[%clk 0:01:47.1]}
25. Ne3 {[%clk 0:01:38.4]} 25... Be2 {[%clk 0:01:27.8]} 26. Nd5 {[%clk
0:01:33.3]} 26... Kf8 {[%clk 0:01:16.1]} 27. Kg1 {[%clk 0:01:29.3]} 27... b4
{[%clk 0:01:16.1]} 28. axb4 {[%clk 0:01:26.3]} 28... cxb4 {[%clk 0:01:12.8]} 29.
Nxb4 {[%clk 0:01:22.7]} 29... exf4 {[%clk 0:01:10.8]} 30. gxf4 {[%clk 0:01:23]}
30... Nc5 {[%clk 0:01:12.7]} 31. Kf2 {[%clk 0:01:21.1]} 31... Bb5 {[%clk
0:01:13.1]} 32. Ke3 {[%clk 0:01:20.1]} 32... Ke7 {[%clk 0:01:13.3]} 33. Nd5+
{[%clk 0:01:18.4]} 33... Kd6 {[%clk 0:01:10.4]} 34. e5+ {[%clk 0:01:14.4]} 34...
Kd7 {[%clk 0:01:03.1]} 35. f5 {[%clk 0:01:05]} 35... g6 {[%clk 0:00:48.5]} 36.
Kd4 {[%clk 0:01:00.3]} 36... Nb7 {[%clk 0:00:42.8]} 37. fxg6 {[%clk 0:00:53.7]}
37... fxg6 {[%clk 0:00:44.7]} 38. Be4 {[%clk 0:00:36.1]} 38... g5 {[%clk
0:00:42.7]} 39. Bf5+ {[%clk 0:00:34.9]} 39... Ke8 {[%clk 0:00:29]} 40. Nc7+
{[%clk 0:00:34.1]} 40... Ke7 {[%clk 0:00:30.4]} 41. Nxb5 {[%clk 0:00:33.3]}
41... axb5 {[%clk 0:00:32.3]} 42. b4 {[%clk 0:00:32.9]} 42... h5 {[%clk
0:00:30.9]} 43. Kd5 {[%clk 0:00:33.5]} 43... Nd8 {[%clk 0:00:25.8]} 44. Kc5
{[%clk 0:00:32.8]} 44... Nf7 {[%clk 0:00:26.8]} 45. Kd5 {[%clk 0:00:22.8]} 45...
Nh6 {[%clk 0:00:25.7]} 46. Bg6 {[%clk 0:00:21.3]} 46... g4 {[%clk 0:00:25.3]}
47. Bxh5 {[%clk 0:00:22.5]} 47... gxh3 {[%clk 0:00:26.6]} 48. Bf3 {[%clk
0:00:23.5]} 48... h2 {[%clk 0:00:25.7]} 49. Kc5 {[%clk 0:00:24.5]} 49... Ng4
{[%clk 0:00:25.7]} 50. Kxb5 {[%clk 0:00:23.4]} 50... Nxe5 {[%clk 0:00:24.6]} 51.
Bg2 {[%clk 0:00:22.6]} 51... Kd6 {[%clk 0:00:21.2]} 52. c4 {[%clk 0:00:23]}
52... Kc7 {[%clk 0:00:21.3]} 53. c5 {[%clk 0:00:22]} 53... Nd3 {[%clk
0:00:20.1]} 54. Ka5 {[%clk 0:00:20.2]} 54... Kb8 {[%clk 0:00:16.6]} 55. b5
{[%clk 0:00:20.9]} 55... Nxc5 {[%clk 0:00:17.4]} 56. Kb4 {[%clk 0:00:21.3]}
56... Nd3+ {[%clk 0:00:15.5]} 57. Kc3 {[%clk 0:00:22.2]} 57... Nf2 {[%clk
0:00:17.4]} 58. Kd4 {[%clk 0:00:21.9]} 58... h1=Q {[%clk 0:00:18.3]} 59. Bxh1
{[%clk 0:00:23.1]} 59... Nxh1 {[%clk 0:00:20.2]} 60. Kc5 {[%clk 0:00:24.5]}
60... Ng3 {[%clk 0:00:21.2]} 61. b6 {[%clk 0:00:26.4]} 61... Nf5 {[%clk
0:00:22.2]} 62. b7 {[%clk 0:00:26.9]} 62... Kxb7 {[%clk 0:00:22.8]} 1/2-1

[Event "Torneo Nuevo Centro. Jornada 11"]
[Site "Chess.com"]
[Date "2020.08.28"]
[Round "2"]
[White "Roca Cruz, Rafael"]
[Black "Lloret Ramis, Juan José"]
[Result "0-1"]
[WhiteElo "1796"]
[BlackElo "1977"]
[TimeControl "180+2"]
[EndTime "10:49:56 PDT"]
[Termination "Victoria de Amiplim por abandono"]

1. d4 {[%clk 0:03:00]} 1... d5 {[%clk 0:02:59.7]} 2. c4 {[%clk 0:03:00.9]} 2...
e6 {[%clk 0:02:59.8]} 3. Nc3 {[%clk 0:03:00.9]} 3... Nf6 {[%clk 0:02:59.9]} 4.
Bg5 {[%clk 0:03:01.7]} 4... Be7 {[%clk 0:03:00.2]} 5. cxd5 {[%clk 0:03:02.4]}
5... exd5 {[%clk 0:02:59.1]} 6. e3 {[%clk 0:03:03.3]} 6... c6 {[%clk 0:03:00]}
7. Bd3 {[%clk 0:03:04.1]} 7... Nbd7 {[%clk 0:03:01.4]} 8. Qc2 {[%clk 0:03:05.3]}
8... Nh5 {[%clk 0:03:02.2]} 9. Bxe7 {[%clk 0:02:58.8]} 9... Qxe7 {[%clk
0:03:04.1]} 10. Nge2 {[%clk 0:02:59.6]} 10... g6 {[%clk 0:03:02.9]} 11. O-O
{[%clk 0:02:57.7]} 11... Ndf6 {[%clk 0:03:02.3]} 12. Rae1 {[%clk 0:02:54.9]}
12... O-O {[%clk 0:03:02]} 13. a3 {[%clk 0:02:11.9]} 13... Ng7 {[%clk 0:03:00]}
14. Ng3 {[%clk 0:02:11.2]} 14... h5 {[%clk 0:02:59.7]} 15. f3 {[%clk 0:01:48.1]}
15... h4 {[%clk 0:02:57.1]} 16. Nh1 {[%clk 0:01:47.8]} 16... Ne6 {[%clk
0:02:28.2]} 17. Qf2 {[%clk 0:01:43.2]} 17... Qd6 {[%clk 0:02:27.2]} 18. Qxh4
{[%clk 0:01:40.3]} 18... Kg7 {[%clk 0:02:22.2]} 19. e4 {[%clk 0:01:33.9]} 19...
dxe4 {[%clk 0:02:19]} 20. Nxe4 {[%clk 0:00:53.2]} 20... Qxd4+ {[%clk 0:02:03.8]}
21. Nhf2 {[%clk 0:00:53.9]} 21... Nxe4 {[%clk 0:01:47.3]} 22. Rxe4 {[%clk
0:00:45]} 22... Qxb2 {[%clk 0:01:43.8]} 23. Ng4 {[%clk 0:00:45.7]} 23... Rh8
{[%clk 0:01:35.2]} 24. Qe7 {[%clk 0:00:29.7]} 24... Qc3 {[%clk 0:01:07.6]} 25.
Ne5 {[%clk 0:00:30.1]} 25... Qc5+ {[%clk 0:01:04.1]} 26. Qxc5 {[%clk 0:00:27.3]}
26... Nxc5 {[%clk 0:01:06]} 27. Re3 {[%clk 0:00:26]} 27... Nxd3 {[%clk
0:01:07.1]} 28. Nxd3 {[%clk 0:00:26]} 28... Be6 {[%clk 0:00:58.1]} 29. Nc5
{[%clk 0:00:26.9]} 29... Bd5 {[%clk 0:00:58.4]} 30. Nxb7 {[%clk 0:00:24.5]}
30... Rab8 {[%clk 0:00:59.6]} 31. Nc5 {[%clk 0:00:20.5]} 31... Rb2 {[%clk
0:00:58.9]} 32. Nd3 {[%clk 0:00:19]} 32... Rb3 {[%clk 0:00:57]} 33. Rfe1 {[%clk
0:00:19.3]} 33... Rhb8 {[%clk 0:00:52.5]} 34. Nf4 {[%clk 0:00:17.2]} 34... Rxe3
{[%clk 0:00:45.1]} 35. Rxe3 {[%clk 0:00:18.3]} 35... Rb1+ {[%clk 0:00:46]} 36.
Kf2 {[%clk 0:00:19.5]} 36... Rb2+ {[%clk 0:00:46.7]} 37. Kg3 {[%clk 0:00:20.7]}
37... Bc4 {[%clk 0:00:46.4]} 38. Re7 {[%clk 0:00:20.6]} 38... a6 {[%clk
0:00:42.7]} 39. h3 {[%clk 0:00:20.8]} 39... Rb3 {[%clk 0:00:41.3]} 40. Rc7
{[%clk 0:00:16.7]} 40... Bb5 {[%clk 0:00:33.3]} 41. Ne6+ {[%clk 0:00:17.6]}
41... Kf6 {[%clk 0:00:31.1]} 42. Nd4 {[%clk 0:00:18.7]} 42... Rxa3 {[%clk
0:00:30.4]} 43. Nxb5 {[%clk 0:00:12.3]} 43... cxb5 {[%clk 0:00:30.8]} 44. h4
{[%clk 0:00:12.5]} 44... b4 {[%clk 0:00:30]} 45. Kf4 {[%clk 0:00:13.6]} 45... b3
{[%clk 0:00:29.6]} 46. Rc6+ {[%clk 0:00:15]} 46... Kg7 {[%clk 0:00:29.4]} 47.
Rb6 {[%clk 0:00:14.5]} 47... a5 {[%clk 0:00:29.4]} 48. g4 {[%clk 0:00:14.9]}
48... a4 {[%clk 0:00:30.2]} 49. g5 {[%clk 0:00:12.4]} 49... Ra2 {[%clk
0:00:30.3]} 50. h5 {[%clk 0:00:10.7]} 50... gxh5 {[%clk 0:00:29.5]} 51. Kf5
{[%clk 0:00:12]} 51... Rf2 {[%clk 0:00:29.9]} 52. g6 {[%clk 0:00:08.1]} 52...
fxg6+ {[%clk 0:00:28.6]} 53. Kg5 {[%clk 0:00:09.6]} 53... Rxf3 {[%clk
0:00:25.8]} 54. Rb7+ {[%clk 0:00:10.4]} 54... Kg8 {[%clk 0:00:25.3]} 55. Kxg6
{[%clk 0:00:11.8]} 55... Rg3+ {[%clk 0:00:26.5]} 56. Kxh5 {[%clk 0:00:13]} 56...
a3 {[%clk 0:00:25.6]} 57. Kh4 {[%clk 0:00:08.3]} 57... Rc3 {[%clk 0:00:26.3]}
58. Kg5 {[%clk 0:00:07.9]} 58... a2 {[%clk 0:00:25]} 59. Kg6 {[%clk 0:00:08.3]}
59... Rg3+ {[%clk 0:00:26]} 0

[Event "Torneo Nuevo Centro. Jornada 11"]
[Site "Chess.com"]
[Date "2020.08.28"]
[Round "2"]
[White "Donate Moreno, Silvia"]
[Black "Garcia, Jhoel"]
[Result "0-1"]
[WhiteElo "1839"]
[BlackElo "2383"]
[TimeControl "180+2"]
[EndTime "10:50:08 PDT"]
[Termination "Victoria de shoels por jaque mate"]

1. e4 {[%clk 0:03:01.9]} 1... c5 {[%clk 0:03:01.1]} 2. Nf3 {[%clk 0:03:02.7]}
2... Nc6 {[%clk 0:03:02.3]} 3. d4 {[%clk 0:03:03.6]} 3... cxd4 {[%clk
0:03:03.4]} 4. Nxd4 {[%clk 0:03:05.5]} 4... g6 {[%clk 0:03:04.8]} 5. c4 {[%clk
0:03:06]} 5... Bg7 {[%clk 0:03:06]} 6. Be3 {[%clk 0:03:07.2]} 6... Nf6 {[%clk
0:03:07.1]} 7. Nc3 {[%clk 0:03:08.4]} 7... O-O {[%clk 0:03:08.5]} 8. Be2 {[%clk
0:03:09.2]} 8... d6 {[%clk 0:03:10]} 9. O-O {[%clk 0:03:10.3]} 9... Bd7 {[%clk
0:03:11.6]} 10. Qd2 {[%clk 0:03:10.9]} 10... Nxd4 {[%clk 0:03:12.5]} 11. Bxd4
{[%clk 0:03:12.8]} 11... Bc6 {[%clk 0:03:14.4]} 12. f3 {[%clk 0:03:13]} 12... a6
{[%clk 0:03:15.8]} 13. Rfd1 {[%clk 0:03:03.7]} 13... Nd7 {[%clk 0:03:16.1]} 14.
Be3 {[%clk 0:03:02.4]} 14... Re8 {[%clk 0:03:04.2]} 15. Qc2 {[%clk 0:03:00.9]}
15... Rc8 {[%clk 0:02:58.7]} 16. Rac1 {[%clk 0:02:53.3]} 16... b5 {[%clk
0:02:56.9]} 17. cxb5 {[%clk 0:02:51.9]} 17... Bxb5 {[%clk 0:02:52.2]} 18. Bxb5
{[%clk 0:02:51.4]} 18... axb5 {[%clk 0:02:53.7]} 19. Qb3 {[%clk 0:02:51.8]}
19... Qa5 {[%clk 0:02:42.8]} 20. Nxb5 {[%clk 0:02:47.8]} 20... Rxc1 {[%clk
0:02:16.6]} 21. Rxc1 {[%clk 0:02:42.9]} 21... Rb8 {[%clk 0:02:16.5]} 22. a4
{[%clk 0:02:42.8]} 22... Nc5 {[%clk 0:02:17.9]} 23. Bxc5 {[%clk 0:02:42.1]}
23... dxc5 {[%clk 0:02:17.2]} 24. Qc4 {[%clk 0:02:25.8]} 24... Qd2 {[%clk
0:01:51.4]} 25. b3 {[%clk 0:02:18.2]} 25... Bd4+ {[%clk 0:01:35.4]} 26. Kh1
{[%clk 0:02:06.8]} 26... h5 {[%clk 0:01:31.2]} 27. Qc2 {[%clk 0:01:58.3]} 27...
Qe3 {[%clk 0:01:28.2]} 28. Rd1 {[%clk 0:01:49.6]} 28... h4 {[%clk 0:01:26.6]}
29. Qd3 {[%clk 0:01:32.6]} 29... Qf2 {[%clk 0:00:48.4]} 30. Qd2 {[%clk
0:01:27.3]} 30... e5 {[%clk 0:00:38.6]} 31. Qxf2 {[%clk 0:01:20.5]} 31... Bxf2
{[%clk 0:00:38.8]} 32. Rd5 {[%clk 0:01:19.2]} 32... Rc8 {[%clk 0:00:34.8]} 33.
Nd6 {[%clk 0:01:04.4]} 33... Rb8 {[%clk 0:00:30.7]} 34. Rd3 {[%clk 0:01:04.2]}
34... Bd4 {[%clk 0:00:27.7]} 35. Nc4 {[%clk 0:00:59.9]} 35... Kg7 {[%clk
0:00:27]} 36. Ne3 {[%clk 0:00:53.6]} 36... Bxe3 {[%clk 0:00:23.8]} 37. Rxe3
{[%clk 0:00:55.5]} 37... c4 {[%clk 0:00:25.6]} 38. Re1 {[%clk 0:00:46.6]} 38...
Rxb3 {[%clk 0:00:24.7]} 39. Rc1 {[%clk 0:00:38.9]} 39... Ra3 {[%clk 0:00:22]}
40. Kg1 {[%clk 0:00:36.5]} 40... Rxa4 {[%clk 0:00:23.2]} 41. g3 {[%clk
0:00:37.3]} 41... h3 {[%clk 0:00:22.5]} 42. Rc2 {[%clk 0:00:35.4]} 42... Kf6
{[%clk 0:00:21.9]} 43. Kf2 {[%clk 0:00:35.8]} 43... Ke6 {[%clk 0:00:21]} 44. Ke3
{[%clk 0:00:34]} 44... Kd6 {[%clk 0:00:21.4]} 45. f4 {[%clk 0:00:34.1]} 45...
Ra3+ {[%clk 0:00:22]} 46. Kf2 {[%clk 0:00:32.7]} 46... Kc5 {[%clk 0:00:23.5]}
47. Ke2 {[%clk 0:00:23.2]} 47... Kd4 {[%clk 0:00:22.8]} 48. Rd2+ {[%clk
0:00:16.7]} 48... Kxe4 {[%clk 0:00:23.2]} 49. fxe5 {[%clk 0:00:14.9]} 49... Kxe5
{[%clk 0:00:24.2]} 50. Rd7 {[%clk 0:00:13.9]} 50... f5 {[%clk 0:00:20.7]} 51.
Rc7 {[%clk 0:00:12.2]} 51... Kd5 {[%clk 0:00:21.3]} 52. Kf2 {[%clk 0:00:10.7]}
52... Ra2+ {[%clk 0:00:21.4]} 53. Kg1 {[%clk 0:00:10.1]} 53... Kd4 {[%clk
0:00:22.9]} 54. Rc6 {[%clk 0:00:09.1]} 54... Ke3 {[%clk 0:00:21.6]} 55. Re6+
{[%clk 0:00:08]} 55... Kf3 {[%clk 0:00:22.5]} 56. Re1 {[%clk 0:00:07.1]} 56...
Rg2+ {[%clk 0:00:23.5]} 57. Kh1 {[%clk 0:00:07.2]} 57... Re2 {[%clk 0:00:23.9]}
58. Rf1+ {[%clk 0:00:07.7]} 58... Ke3 {[%clk 0:00:24.3]} 59. g4 {[%clk
0:00:07.7]} 59... f4 {[%clk 0:00:25]} 60. g5 {[%clk 0:00:07.6]} 60... c3 {[%clk
0:00:25.6]} 61. Rf3+ {[%clk 0:00:05.7]} 61... Kxf3 {[%clk 0:00:25.4]} 62. Kg1
{[%clk 0:00:06.1]} 62... Re1# {[%clk 0:00:27]} 0

[Event "Torneo Nuevo Centro. Jornada 11"]
[Site "Chess.com"]
[Date "2020.08.28"]
[Round "3"]
[White "Fitzpatrick Dimas, Kevin"]
[Black "Méndez Giménez , Néstor Emmanuel"]
[Result "0-1"]
[WhiteElo "841"]
[BlackElo "1244"]
[TimeControl "180+2"]
[EndTime "10:51:31 PDT"]
[Termination "Victoria de NestorMendez8 por abandono"]

1. e4 {[%clk 0:03:01.9]} 1... e6 {[%clk 0:03:00.5]} 2. Bc4 {[%clk 0:03:01.8]}
2... Nf6 {[%clk 0:02:58.6]} 3. Nc3 {[%clk 0:02:59.8]} 3... d5 {[%clk 0:02:57.6]}
4. exd5 {[%clk 0:03:00.1]} 4... exd5 {[%clk 0:02:58.1]} 5. Qe2+ {[%clk
0:03:01.6]} 5... Be7 {[%clk 0:02:58.2]} 6. Nxd5 {[%clk 0:03:01.4]} 6... Nxd5
{[%clk 0:02:58.7]} 7. Bxd5 {[%clk 0:03:01.4]} 7... Qxd5 {[%clk 0:02:59.3]} 8. c4
{[%clk 0:03:01.1]} 8... Qxg2 {[%clk 0:02:59.7]} 9. c5 {[%clk 0:02:52.6]} 9...
Qxh1 {[%clk 0:02:57.6]} 10. Qb5+ {[%clk 0:02:53.9]} 10... Bd7 {[%clk 0:02:55.3]}
11. Qb6 {[%clk 0:02:53.9]} 0

[Event "Torneo Nuevo Centro. Jornada 11"]
[Site "Chess.com"]
[Date "2020.08.28"]
[Round "3"]
[White "Alvarez Usina, Jordi"]
[Black "Grigorev, Artur "]
[Result "1-0"]
[WhiteElo "1269"]
[BlackElo "919"]
[TimeControl "180+2"]
[EndTime "10:52:06 PDT"]
[Termination "Victoria de jordi_alvarez por jaque mate"]

1. d4 {[%clk 0:03:01.9]} 1... d5 {[%clk 0:02:59.7]} 2. Bf4 {[%clk 0:03:03.5]}
2... Nc6 {[%clk 0:02:59.9]} 3. e3 {[%clk 0:03:01.8]} 3... Bf5 {[%clk 0:02:55.3]}
4. c3 {[%clk 0:02:56.5]} 4... e6 {[%clk 0:02:52]} 5. Bd3 {[%clk 0:02:56.4]} 5...
Bxd3 {[%clk 0:02:51.5]} 6. Qxd3 {[%clk 0:02:56.2]} 6... Bd6 {[%clk 0:02:45.3]}
7. Bg3 {[%clk 0:02:55.2]} 7... Bxg3 {[%clk 0:02:44]} 8. hxg3 {[%clk 0:02:55.3]}
8... Nf6 {[%clk 0:02:44.7]} 9. Nf3 {[%clk 0:02:56.1]} 9... O-O {[%clk
0:02:23.1]} 10. g4 {[%clk 0:02:52.6]} 10... Nxg4 {[%clk 0:02:21.6]} 11. Qxh7#
{[%clk 0:02:50.4]} 1